lending/lending_fUSD_20260330
["ID","MTS","AMOUNT","RATE_DAILY","PERIOD"]
[419088717,1774859444966,-541.39864331,0.000137,2]
[419088720,1774859444979,-12.23135669,0.000137,2]
[419088722,1774859444989,-37347.60809938,0.00016,2]
[419088724,1774859445001,-172089.45367545,0.00016,2]
[419088726,1774859445014,-371.99360738,0.00016,2]
[419088905,1774859446933,-553.63,0.0001589,2]
[419088907,1774859446943,-553.63,0.00015966,2]
[419088909,1774859446953,-9698.49634408,0.00016,2]
[419088912,1774859446973,-5172.86760509,0.00016,2]
[419088925,1774859447098,-1676.8089,0.00016,2]
[419088928,1774859447118,-5865.61362237,0.00016,2]
[419088931,1774859447138,-18873.96545351,0.00016,2]
[419089176,1774859516210,150.0,0.00016,120]
[419089178,1774859559927,5780.55425495,0.0002,120]
[419089179,1774859712986,150.0,0.00016,120]
[419089180,1774859902591,150.0,0.00016,120]
[419089181,1774859980145,-300.0,8.491e-05,2]
[419089182,1774859980189,-150.0,8.491e-05,2]
[419089183,1774859980234,-300.0,8.491e-05,2]
[419089184,1774860001206,1200.0,8.491e-05,2]
[419089185,1774860004633,709.41,6.524e-05,2]
[419089186,1774860004824,709.41,6.868e-05,2]
[419089187,1774860005013,709.41,7.211e-05,2]
[419089188,1774860005240,709.41,7.554e-05,2]
[419089189,1774860005428,709.41,7.898e-05,2]
[419089190,1774860005620,709.41,8.241e-05,2]
[419089191,1774860091172,150.0,0.00016,120]
[419089192,1774860102523,-238.0,8.492e-05,2]
[419089193,1774860279274,170.49,0.00016,120]
[419089194,1774860386057,900.0,8.087e-05,2]
[419089590,1774860416044,999.0,8.554e-05,2]
[419089897,1774860437261,666.0,8.554e-05,2]
[419090037,1774860448926,888.0,8.554e-05,2]
[419090389,1774860631479,-240.0,8.584e-05,2]
[419090390,1774860631489,-151.18176171,8.584e-05,2]
[419090391,1774860631499,-145.12414829,8.584e-05,2]
[419090392,1774860631675,-564.28585171,8.584e-05,2]
[419090393,1774860631685,-4565.5502,8.689e-05,2]
[419090394,1774860631695,-237.54,8.78e-05,2]
[419090395,1774860631705,-709.41,8.928e-05,2]
[419090396,1774860631715,-300.0,9.238e-05,2]
[419090397,1774860631725,-328.0,9.238e-05,2]
[419090398,1774860631735,-300.0,9.239e-05,2]
[419090399,1774860631745,-5268.6384,9.24e-05,2]
[419090400,1774860631755,-709.41,9.271e-05,2]
[419090401,1774860631765,-617.97310761,9.443e-05,2]
[419090402,1774860631775,-612.26,9.568e-05,2]
[419090403,1774860631785,-709.41,9.614e-05,2]
[419090404,1774860631795,-10968.3434,9.702e-05,2]
[419090405,1774860631804,-1000.0,9.702e-05,2]
[419090406,1774860631814,-303267.46675199,9.89e-05,2]
[419090410,1774860637535,-745.46632711,8.928e-05,2]
[419090483,1774860640215,-2230.47625356,8.928e-05,2]
[419090484,1774860640234,-4587.05345756,8.928e-05,2]
[419090485,1774860640256,-42437.00396177,8.928e-05,2]
[419090486,1774860640271,-1015713.19404801,9.89e-05,2]
[419090487,1774860640287,-32233.128,9.9e-05,2]
[419090488,1774860640302,-709.41,9.958e-05,2]
[419090489,1774860640318,-9891.32,9.958e-05,2]
[419090490,1774860640334,-150.99,9.958e-05,2]
[419090491,1774860640349,-51095.31537278,9.99e-05,2]
[419090492,1774860640365,-9999.99,0.0001,2]
[419090493,1774860640379,-151.0,0.0001,2]
[419090494,1774860640394,-500.0,0.0001,2]
[419090495,1774860640409,-151.0,0.0001,2]
[419090496,1774860640424,-500.0,0.0001,2]
[419090497,1774860640440,-500.0,0.0001,2]
[419090498,1774860640453,-151.0,0.0001,2]
[419090499,1774860640467,-500.0,0.0001,2]
[419090500,1774860640481,-151.0,0.0001,2]
[419090501,1774860640495,-151.0,0.0001,2]
[419090502,1774860640509,-500.0,0.0001,2]
[419090503,1774860640523,-151.0,0.0001,2]
[419090504,1774860640538,-500.0,0.0001,2]
[419090505,1774860640553,-151.0,0.0001,2]
[419090506,1774860640567,-400.85944213,0.0001,2]
[419090507,1774860640581,-151.0,0.0001,2]
[419090508,1774860640596,-151.0,0.0001,2]
[419090509,1774860640611,-151.0,0.0001,2]
[419090510,1774860640625,-151.0,0.0001,2]
[419090511,1774860640639,-420.0,0.00010162,2]
[419090512,1774860640663,-150.0,0.000103,2]
[419090513,1774860640685,-709.41,0.00010301,2]
[419090514,1774860640704,-709.41,0.00010645,2]
[419090515,1774860640722,-2000.0,0.00010928,2]
[419090516,1774860640740,-709.41,0.00010988,2]
[419090519,1774860640756,-2312.78,0.00011021,2]
[419090522,1774860640774,-2476.21,0.00011036,2]
[419090525,1774860640791,-587.0,0.00011178,2]
[419090527,1774860640808,-709.41,0.00011331,2]
[419090530,1774860640825,-331.72967586,0.00011475,2]
[419090533,1774860640841,-166.66,0.00011669,2]
[419090534,1774860640857,-709.41,0.00011675,2]
[419090535,1774860640873,-196.6901,0.000117,7]
[419090536,1774860640889,-166.66,0.00011915,2]
[419090537,1774860640906,-327.14,0.00011944,2]
[419090538,1774860640924,-709.41,0.00012018,2]
[419090539,1774860640940,-166.66,0.0001216,2]
[419090540,1774860640956,-2000.0,0.00012295,2]
[419090541,1774860640971,-823.0,0.00012296,2]
[419090542,1774860640988,-709.41,0.00012361,2]
[419090543,1774860641003,-166.66,0.00012406,2]
[419090544,1774860641018,-166.66,0.00012652,2]
[419090545,1774860641033,-709.41,0.00012705,2]
[419090546,1774860641049,-1830.54,0.00012878,2]
[419090547,1774860641064,-845.93,0.00012896,2]
[419090548,1774860641079,-166.66,0.00012897,2]
[419090549,1774860641095,-250.0,0.00013,2]
[419090550,1774860641109,-709.41,0.00013048,2]
[419090551,1774860641124,-257.9133,0.000132,12]
[419090552,1774860641139,-1600.0,0.00013231,2]
[419090553,1774860641154,-16964.0,0.000134,2]
[419090554,1774860641169,-1152.0,0.00013525,2]
[419090555,1774860641185,-2000.0,0.00013661,2]
[419090556,1774860641200,-153.0,0.00013699,2]
[419090557,1774860641214,-160.0,0.00013812,2]
[419090558,1774860641228,-223.36239743,0.00013862,2]
[419090559,1774860641243,-40235.1007,0.00013962,2]
[419090560,1774860641258,-4566.50840311,0.00014032,2]
[419090561,1774860641272,-223.36239734,0.00014088,2]
[419090562,1774860641286,-502.37956193,0.000141,2]
[419090563,1774860641301,-223.36239734,0.00014315,2]
[419090564,1774860641317,-2500.0,0.00014396,2]
[419090565,1774860641333,-5534.0,0.000144,3]
[419090566,1774860641347,-500.0,0.00014496,2]
[419090567,1774860641362,-500.0,0.00014496,2]
[419090568,1774860641377,-500.0,0.00014496,2]
[419090569,1774860641391,-500.0,0.00014496,2]
[419090570,1774860641405,-500.0,0.00014496,2]
[419090571,1774860641419,-500.0,0.00014496,2]
[419090572,1774860641433,-500.0,0.00014496,2]
[419090573,1774860641446,-500.0,0.00014496,2]
[419090574,1774860641460,-500.0,0.00014496,2]
[419090575,1774860641473,-500.0,0.00014496,2]
[419090576,1774860641487,-500.0,0.00014496,2]
[419090577,1774860641501,-500.0,0.00014496,2]
[419090578,1774860641515,-151.0,0.00014496,2]
[419090579,1774860641529,-250.0,0.00014496,2]
[419090580,1774860641542,-250.0,0.00014496,2]
[419090581,1774860641557,-250.0,0.00014496,2]
[419090582,1774860641571,-250.0,0.00014496,2]
[419090583,1774860641586,-250.0,0.00014496,2]
[419090584,1774860641599,-250.0,0.00014496,2]
[419090585,1774860641612,-250.0,0.00014496,2]
[419090586,1774860641626,-174.61919141,0.00014496,2]
[419090587,1774860641640,-250.0,0.00014496,2]
[419090588,1774860641653,-250.0,0.00014496,2]
[419090589,1774860641667,-250.0,0.00014496,2]
[419090590,1774860641680,-250.0,0.00014496,2]
[419090591,1774860641693,-223.36239734,0.00014541,2]
[419090592,1774860641707,-500.0,0.00014551,2]
[419090593,1774860641720,-151.0,0.00014551,2]
[419090594,1774860641733,-500.0,0.00014606,2]
[419090595,1774860641747,-151.0,0.00014606,2]
[419090596,1774860641761,-3518.0,0.0001461,2]
[419090597,1774860641773,-1045.0,0.0001461,2]
[419090598,1774860641786,-1346.0,0.0001461,2]
[419090599,1774860641801,-1262.0,0.0001461,2]
[419090600,1774860641813,-925.0,0.0001461,2]
[419090601,1774860641826,-1216.0,0.0001461,2]
[419090602,1774860641840,-3766.0,0.0001461,2]
[419090603,1774860641853,-415.0,0.0001461,2]
[419090604,1774860641867,-500.0,0.00014661,2]
[419090605,1774860641880,-151.0,0.00014661,2]
[419090606,1774860641893,-338.1934,0.000147,17]
[419090607,1774860641908,-5000.0,0.000147,2]
[419090608,1774860641922,-154.16797467,0.000147,2]
[419090609,1774860641935,-500.0,0.00014716,2]
[419090610,1774860641947,-151.0,0.00014716,2]
[419090611,1774860641961,-223.36239734,0.00014768,2]
[419090612,1774860641974,-500.0,0.00014771,2]
[419090613,1774860641989,-151.0,0.00014771,2]
[419090614,1774860642002,-153.85472028,0.00014785,2]
[419090615,1774860642018,-187.44575693,0.0001479,2]
[419090616,1774860642031,-618.09465808,0.00014798,2]
[419090617,1774860642044,-500.0,0.00014798,2]
[419090618,1774860642058,-500.0,0.00014798,2]
[419090619,1774860642072,-500.0,0.00014798,2]
[419090620,1774860642086,-500.0,0.00014798,2]
[419090621,1774860642099,-500.0,0.00014798,2]
[419090622,1774860642113,-500.0,0.00014798,2]
[419090623,1774860642126,-500.0,0.00014798,2]
[419090624,1774860642138,-500.0,0.00014798,2]
[419090625,1774860642152,-552.12163537,0.00014798,2]
[419090626,1774860642164,-500.0,0.00014798,2]
[419090627,1774860642178,-500.0,0.00014798,2]
[419090628,1774860642190,-500.0,0.00014798,2]
[419090629,1774860642203,-500.0,0.00014798,2]
[419090630,1774860642216,-500.0,0.00014798,2]
[419090631,1774860642229,-500.0,0.00014798,2]
[419090632,1774860642242,-500.0,0.00014798,2]
[419090633,1774860642255,-500.0,0.00014798,2]
[419090634,1774860642268,-500.0,0.00014798,2]
[419090635,1774860642282,-500.0,0.00014798,2]
[419090636,1774860642296,-500.0,0.00014798,2]
[419090637,1774860642309,-500.0,0.00014798,2]
[419090638,1774860642322,-500.0,0.00014798,2]
[419090639,1774860642337,-500.0,0.00014798,2]
[419090640,1774860642351,-500.0,0.00014798,2]
[419090641,1774860642364,-500.0,0.00014798,2]
[419090642,1774860642377,-500.0,0.00014798,2]
[419090644,1774860642390,-500.0,0.00014798,2]
[419090646,1774860642402,-500.0,0.00014798,2]
[419090648,1774860642414,-500.0,0.00014798,2]
[419090650,1774860642426,-500.0,0.00014798,2]
[419090652,1774860642439,-301.54302643,0.00014798,2]
[419090653,1774860642451,-500.0,0.00014826,2]
[419090654,1774860642463,-151.0,0.00014826,2]
[419090655,1774860642476,-326.0,0.00014878,2]
[419090656,1774860642490,-500.0,0.00014881,2]
[419090657,1774860642503,-151.0,0.00014881,2]
[419090658,1774860642515,-1600.0,0.00014885,2]
[419090659,1774860642528,-154.16797462,0.000149,2]
[419090660,1774860642547,-500.0,0.00014936,2]
[419090661,1774860642560,-151.0,0.00014936,2]
[419090662,1774860642572,-500.0,0.00014991,2]
[419090664,1774860642584,-151.0,0.00014991,2]
[419090666,1774860642597,-150.0,0.00014994,2]
[419090667,1774860642609,-162.86931416,0.00014994,2]
[419090668,1774860642620,-150.0,0.00014994,2]
[419090669,1774860642632,-150.0,0.00014994,2]
[419090670,1774860642644,-150.0,0.00014994,2]
[419090671,1774860642656,-284.4649743,0.00014994,2]
[419090672,1774860642668,-223.36239734,0.00014994,2]
[419090674,1774860642680,-472.1068837,0.00015,2]
[419090675,1774860642693,-300.0,0.00015,2]
[419090676,1774860642704,-893.16,0.00015,2]
[419090678,1774860642716,-595.44,0.00015,3]
[419090681,1774860642728,-4095.588,0.00015004,2]
[419090683,1774860642741,-194.629,0.00015004,2]
[419090684,1774860642753,-2000.0,0.00015027,2]
[419090685,1774860642766,-181.08010149,0.00015044,2]
[419090686,1774860642778,-500.0,0.00015046,2]
[419090687,1774860642792,-151.0,0.00015046,2]
[419090688,1774860642805,-568.32,0.00015068,2]
[419090689,1774860642817,-154.16797462,0.000151,2]
[419090690,1774860642829,-223.36239734,0.00015221,2]
[419090691,1774860642841,-154.16797462,0.000153,2]
[419090692,1774860642853,-350.0,0.00015341,2]
[419090693,1774860642866,-153.85472027,0.00015343,2]
[419090694,1774860642878,-5534.0,0.000154,5]
[419090695,1774860642892,-5852.16526505,0.000154,2]
[419090696,1774860642905,-223.36239734,0.00015447,2]
[419090697,1774860642917,-2698.58,0.00015471,2]
[419090698,1774860642928,-154.16797462,0.000155,2]
[419090699,1774860642941,-5852.16526505,0.000155,2]
[419090700,1774860642953,-187.78006525,0.00015592,2]
[419090701,1774860642966,-5852.16526505,0.000156,2]
[419090702,1774860642978,-500.0,0.00015605,2]
[419090703,1774860642990,-223.36239734,0.00015674,2]
[419090704,1774860643002,-154.16797462,0.000157,2]
[419090705,1774860643015,-5852.16526505,0.000157,2]
[419090706,1774860643026,-500.0,0.00015726,2]
[419090707,1774860643039,-500.0,0.00015726,2]
[419090708,1774860643052,-500.0,0.00015726,2]
[419090709,1774860643065,-500.0,0.00015726,2]
[419090710,1774860643077,-500.0,0.00015726,2]
[419090711,1774860643089,-500.0,0.00015726,2]
[419090712,1774860643103,-500.0,0.00015726,2]
[419090713,1774860643115,-385.07155912,0.00015726,2]
[419090714,1774860643129,-5852.16526505,0.000158,2]
[419090715,1774860643141,-350.0,0.00015833,2]
[419090716,1774860643155,-500.0,0.00015872,2]
[419090717,1774860643167,-200.0,0.00015872,2]
[419090718,1774860643180,-2000.0,0.0001589,2]
[419090719,1774860643193,-196.0,0.00015897,2]
[419090720,1774860643205,-330.70986396,0.000159,5]
[419090721,1774860643218,-153.85472027,0.000159,2]
[419090722,1774860643230,-154.16797462,0.000159,2]
[419090723,1774860643242,-223.36239734,0.000159,2]
[419090724,1774860643254,-37106.22934068,0.000159,7]
[419090725,1774860643266,-5852.16526505,0.000159,2]
[419090726,1774860643278,-541.0,0.000159,5]
[419090727,1774860643291,-500.50490882,0.00015973,2]
[419090728,1774860643303,-151.0,0.00015997,2]
[419090729,1774860643316,-151.0,0.00015997,2]
[419090730,1774860643329,-172.5960687,0.00015997,2]
[419090731,1774860643341,-3302.2741624,0.00015998,2]
[419090732,1774860643353,-129492.0723195,0.00015998,2]
[419090733,1774860643367,-1213.0935936,0.00015998,2]
[419090734,1774860643380,-200.0,0.00015999,2]
[419090735,1774860643394,-200.0,0.00015999,2]
[419090736,1774860643406,-200.0,0.00015999,2]
[419090737,1774860643418,-200.0,0.00015999,2]
[419090738,1774860643431,-200.0,0.00015999,2]
[419090739,1774860643443,-200.0,0.00015999,2]
[419090740,1774860643457,-200.0000009,0.00015999,2]
[419090741,1774860643469,-176.24498328,0.00015999,2]
[419090742,1774860643481,-500.0,0.00015999,2]
[419090743,1774860643494,-183.62370883,0.00015999,2]
[419090744,1774860643508,-500.0,0.00015999,2]
[419090745,1774860643521,-500.0,0.00015999,2]
[419090746,1774860643534,-500.0,0.00015999,2]
[419090747,1774860643546,-500.0,0.00015999,2]
[419090748,1774860643559,-500.0,0.00015999,2]
[419090749,1774860643572,-500.0,0.00015999,2]
[419090751,1774860643584,-550.0,0.00015999,2]
[419090752,1774860643597,-674.0,0.00016,5]
[419090753,1774860644417,-117418.95527073,0.00016,2]
[419090758,1774860646911,-558.28261931,0.00016,2]
[419090759,1774860647287,-2468.0,0.0001461,2]
[419090760,1774860647298,-4554.50733738,0.00016,2]
[419090761,1774860647406,-2018.01056123,0.00016,2]
[419090762,1774860647419,-1913.65760411,0.00016,2]
[419090763,1774860647430,-727.9181764,0.00016,2]
[419090764,1774860647919,-159.61,0.00011444,2]
[419090765,1774860647928,-98.19686361,0.00016,2]
[419090766,1774860648085,-10479.91861497,0.00016,2]
[419090770,1774860914227,-1200.0,9.601e-05,2]
[419090771,1774860914270,-9808.7154,9.602e-05,2]
[419090772,1774860914310,-504.25937407,9.873e-05,2]
[419090773,1774860914348,-150.0,9.889e-05,2]
[419090774,1774860914387,-300.0,9.889e-05,2]
[419090775,1774860914426,-50000.0,9.889e-05,2]
[419090776,1774860914469,-1500000.0,9.89e-05,2]
[419090777,1774860914509,-4147.505,9.9e-05,2]
[419090778,1774860914547,-37718.638,9.9e-05,2]
[419090779,1774860914662,516.24035434,9.889e-05,2]
[419090780,1774860914710,500.0,9.889e-05,2]
[419090781,1774860914757,500.0,9.889e-05,2]
[419090782,1774860914805,500.0,9.889e-05,2]
[419090783,1774860914848,500.0,9.889e-05,2]
[419090784,1774860914893,500.0,9.889e-05,2]
[419090785,1774860914941,500.0,9.889e-05,2]
[419090786,1774860915455,250.94733218,9.889e-05,2]
[419090787,1774860915513,169.1676725,9.889e-05,2]
[419090788,1774860915555,200.15345191,9.889e-05,2]
[419090789,1774860915604,500.0,9.889e-05,2]
[419090790,1774860915671,500.0,9.889e-05,2]
[419090791,1774860915722,500.0,9.889e-05,2]
[419090792,1774860915766,500.0,9.889e-05,2]
[419090793,1774860915817,500.0,9.889e-05,2]
[419090794,1774860915868,500.0,9.889e-05,2]
[419090795,1774860915913,500.0,9.889e-05,2]
[419090796,1774860915967,500.0,9.889e-05,2]
[419090797,1774860916022,500.0,9.889e-05,2]
[419090798,1774860916066,500.0,9.889e-05,2]
[419090799,1774860916113,500.0,9.889e-05,2]
[419090800,1774860916162,500.0,9.889e-05,2]
[419090801,1774860916215,500.0,9.889e-05,2]
[419090802,1774860916265,500.0,9.889e-05,2]
[419090803,1774860916310,500.0,9.889e-05,2]
[419090804,1774860916355,500.0,9.889e-05,2]
[419090805,1774860916401,500.0,9.889e-05,2]
[419090806,1774860916453,500.0,9.889e-05,2]
[419090807,1774860916502,500.0,9.889e-05,2]
[419090808,1774860916548,500.0,9.889e-05,2]
[419090809,1774860916596,500.0,9.889e-05,2]
[419090810,1774860916649,343.46870999,9.889e-05,2]
[419090811,1774860916711,500.0,9.889e-05,2]
[419090812,1774860916782,500.0,9.889e-05,2]
[419090813,1774860916832,618.85000859,9.889e-05,2]
[419090814,1774860916885,500.0,9.889e-05,2]
[419090815,1774860916934,500.0,9.889e-05,2]
[419090816,1774860916983,500.0,9.889e-05,2]
[419090817,1774860917039,500.0,9.889e-05,2]
[419090818,1774860917491,500.0,9.889e-05,2]
[419090819,1774860917532,500.0,9.889e-05,2]
[419090820,1774860917583,500.0,9.889e-05,2]
[419090821,1774860917631,500.0,9.889e-05,2]
[419090822,1774860917679,500.0,9.889e-05,2]
[419090823,1774860917727,500.0,9.889e-05,2]
[419090824,1774860917785,210.4815906,9.889e-05,2]
[419090825,1774860917833,500.0,9.889e-05,2]
[419090826,1774860917884,500.0,9.889e-05,2]
[419090827,1774860917923,500.0,9.889e-05,2]
[419090828,1774860917965,500.0,9.889e-05,2]
[419090829,1774860918018,500.0,9.889e-05,2]
[419090830,1774860918079,500.0,9.889e-05,2]
[419090831,1774860918141,500.0,9.889e-05,2]
[419090832,1774860918207,500.0,9.889e-05,2]
[419090833,1774860918259,500.0,9.889e-05,2]
[419090834,1774860918323,500.0,9.889e-05,2]
[419090835,1774860918398,500.0,9.889e-05,2]
[419090836,1774860918443,500.0,9.889e-05,2]
[419090837,1774860918492,500.0,9.889e-05,2]
[419090838,1774860918532,500.0,9.889e-05,2]
[419090839,1774860918582,500.0,9.889e-05,2]
[419090840,1774860918632,352.50421543,9.889e-05,2]
[419090841,1774860918691,500.0,9.889e-05,2]
[419090842,1774860918753,500.0,9.889e-05,2]
[419090843,1774860918810,500.0,9.889e-05,2]
[419090844,1774860918864,500.0,9.889e-05,2]
[419090845,1774860918923,500.0,9.889e-05,2]
[419090846,1774860918984,500.0,9.889e-05,2]
[419090847,1774860919057,500.0,9.889e-05,2]
[419090848,1774860919405,500.0,9.889e-05,2]
[419090849,1774860919458,500.0,9.889e-05,2]
[419090850,1774860919529,500.0,9.889e-05,2]
[419090851,1774860919615,500.0,9.889e-05,2]
[419090852,1774860919673,500.0,9.889e-05,2]
[419090853,1774860919732,500.0,9.889e-05,2]
[419090854,1774860919786,500.0,9.889e-05,2]
[419090869,1774861657125,8572.92836767,8e-05,2]
[419090870,1774861702784,-290.19,9.3e-05,2]
[419090871,1774861702822,-160.0,9.889e-05,3]
[419090872,1774861702857,-155.0,9.889e-05,3]
[419090873,1774861702892,-250.0,0.0001023,2]
[419090874,1774861702928,-300.0,0.00010668,2]
[419090875,1774861702961,-51095.31537278,0.00010669,2]
[419090876,1774861702995,-50000.0,0.00010669,2]
[419090877,1774861703030,-1200.0,0.00010679,2]
[419090878,1774861703066,-271.0,0.0001068,2]
[419090879,1774861703101,-150.0,0.0001068,2]
[419090880,1774861703135,-4566.50840311,0.00010876,2]
[419090881,1774861703168,-868.7175577,0.00010916,2]
[419090882,1774861703204,-8835.154373,0.00010916,2]
[419090883,1774861703243,-164.4105497,0.00010916,2]
[419090884,1774861703277,-16964.0,0.000114,2]
[419090885,1774861703312,-9999.99,0.00011507,2]
[419090886,1774861703350,-9891.32,0.00011507,2]
[419090887,1774861703385,-1427.2,0.00011507,2]
[419090888,1774861703420,-619.32,0.00011517,2]
[419090889,1774861703454,-150.0,0.000116,2]
[419090890,1774861703490,-420.0,0.00011727,2]
[419090891,1774861703525,-1680.0,0.00011747,2]
[419090892,1774861703560,-150.99,0.000118,2]
[419090893,1774861703595,-5534.0,0.000118,3]
[419090894,1774861703630,-300.0,0.00011947,2]
[419090895,1774861703666,-32233.128,0.00012197,2]
[419090896,1774861703702,-5534.0,0.000122,5]
[419090897,1774861703738,-8835.154373,0.00012297,2]
[419090898,1774861719860,12112.62436061,0.00010668,2]
[419090899,1774861730775,5869.86,0.00011089,2]
[419090900,1774861806499,298.0,0.000123,2]
[419090901,1774861809058,269674.1170101,9.5e-05,3]
[419090906,1774861831642,-48286.45291203,9.5e-05,3]
[419090910,1774861831731,-2012.78354579,9.5e-05,3]
[419090911,1774861831743,-563.1352,9.5e-05,3]
[419090912,1774861831813,-2498.70757123,9.5e-05,3]
[419090913,1774861831825,-443.5120398,9.5e-05,3]
[419090914,1774861831836,-414.71868,9.5e-05,3]
[419090915,1774861831890,-299.6117258,9.5e-05,3]
[419090916,1774861831902,-77590.98839612,9.5e-05,3]
[419090917,1774861831913,-1254.41808677,9.5e-05,3]
[419090918,1774861831925,-537.56899126,9.5e-05,3]
[419090919,1774861831937,-18858.61043862,9.5e-05,3]
[419090920,1774861831970,-410.55372032,9.5e-05,3]
[419090923,1774861840087,-356.4230969,9.5e-05,3]
[419090924,1774861840136,-1637417.54593846,9.5e-05,3]
[419090925,1774861842248,-388.80973668,9.5e-05,3]
[419090926,1774861842299,-6775.29999972,9.5e-05,3]
[419090927,1774861842458,-251.03397785,9.5e-05,3]
[419090954,1774861843143,-1385.54850313,9.5e-05,3]
[419090955,1774861843155,-667.02700965,9.5e-05,3]
[419090968,1774861844344,-30035.11660254,9.5e-05,3]
[419090969,1774861844354,-187.44575693,0.0001,2]
[419090970,1774861844364,-155.0,0.000123,2]
[419090971,1774861844374,-868.7175577,0.00012359,2]
[419090972,1774861844384,-2500.0,0.00012404,2]
[419090973,1774861844393,-600.0,0.00012404,2]
[419090974,1774861844403,-1200.0,0.00012447,2]
[419090975,1774861844413,-6080.8,0.00012448,2]
[419090976,1774861844422,-1757.11,0.00012529,2]
[419090977,1774861844431,-2500.0,0.00012602,2]
[419090978,1774861844440,-2500.0,0.00012602,2]
[419090979,1774861844449,-2500.0,0.00012602,2]
[419090980,1774861844459,-600.0,0.00012602,2]
[419090981,1774861844468,-600.0,0.00012602,2]
[419090982,1774861844478,-723.92546681,0.00012602,2]
[419090983,1774861844488,-168.16,0.00012788,2]
[419090984,1774861844498,-170.11,0.00012808,2]
[419090985,1774861844508,-166.66,0.00012887,2]
[419090986,1774861844518,-150.0,0.00012937,2]
[419090987,1774861844528,-150.0,0.00013,2]
[419090988,1774861844538,-538.8,0.00013,7]
[419090989,1774861844550,-250.0,0.00013,2]
[419090990,1774861844559,-242.51050988,0.00013076,2]
[419090991,1774861844569,-160.0,0.00013209,2]
[419090992,1774861844578,-160.0,0.00013215,2]
[419090993,1774861844589,-370.0,0.00013288,2]
[419090994,1774861844599,-166.66,0.00013312,2]
[419090995,1774861844609,-2500.0,0.00013358,2]
[419090996,1774861844619,-150.0,0.00013404,2]
[419090997,1774861844630,-150.0,0.00013404,2]
[419090998,1774861844639,-150.0,0.00013404,2]
[419090999,1774861844649,-284.4649743,0.00013404,2]
[419091000,1774861844659,-500.0,0.00013404,2]
[419091001,1774861844668,-500.0,0.00013404,2]
[419091002,1774861844679,-500.0,0.00013404,2]
[419091003,1774861844688,-500.0,0.00013404,2]
[419091004,1774861844698,-500.0,0.00013404,2]
[419091005,1774861844708,-500.0,0.00013404,2]
[419091006,1774861844719,-500.0,0.00013404,2]
[419091007,1774861844728,-500.0,0.00013404,2]
[419091008,1774861844738,-500.0,0.00013404,2]
[419091009,1774861844747,-637.65229483,0.00013404,2]
[419091010,1774861844757,-500.0,0.00013449,2]
[419091011,1774861844767,-500.0,0.00013449,2]
[419091012,1774861844777,-500.0,0.00013449,2]
[419091013,1774861844787,-500.0,0.00013449,2]
[419091014,1774861844796,-500.0,0.00013449,2]
[419091015,1774861844805,-500.0,0.00013449,2]
[419091016,1774861844815,-500.0,0.00013449,2]
[419091017,1774861844824,-400.85944213,0.00013449,2]
[419091018,1774861844834,-151.0,0.00013449,2]
[419091019,1774861844845,-151.0,0.00013449,2]
[419091020,1774861844855,-151.0,0.00013449,2]
[419091021,1774861844864,-151.0,0.00013449,2]
[419091022,1774861844874,-151.0,0.00013449,2]